Cogmind - Beta 11 X7 @@@ ROGUE MODE // 2021.09.07 @ 00:17:40 Player: AlmondRoll Result: Destroyed by Alpha 7 with Multirail Performance ------------- Evolutions (9) 4500 Regions Visited (30) 6000 Robots Destroyed (138) 690 Value Destroyed (3814) 3814 Prototype IDs (88) 1760 Alien Tech Used (2) 400 Bonus (10833) 10833 TOTAL SCORE: 27997 Bonus ------- Follower Combat Kills 97 Aligned with FarCom 300 Met Data Miner 300 Met Zhirov 300 Met Warlord at Base 500 MAIN.C Attacked Warlord 500 Met Warlord at Research 2000 Scanned by Researcher 500 Acquired SGEMP 2000 Delivered SGEMP 2000 Destroyed MAIN.C Guards 500 Met Warlord at Command 2000 Friendly Fire -164 Cogmind --------- Core Integrity 0/1600 Matter 253/300 Energy 100/100 System Corruption 27% Temperature Cool (0) Movement Core (50) Location -1/Command Parts ------- > --- POWER (2) -------- (None) > --- PROPULSION (8) --- (None) > --- UTILITY (13) ----- (None) > --- WEAPON (2) ------- (None) > --- INVENTORY (5) ---- Layered Heavy Armor Plating Improved Arc Projector Backup Laser VII Kinetic Spear Peak State ------------ > --- POWER ------------ Micro Fission Core Micro Fission Core > --- PROPULSION ------- Xenon Bombardment Thruster Xenon Bombardment Thruster Xenon Bombardment Thruster Cooled Impulse Thruster Impulse Thruster Array Impulse Thruster Array > --- UTILITY ---------- Experimental Power Amplifier Experimental Power Amplifier Experimental Energy Well Gravity Neutralizing Apparatus Quantum Capacitor Advanced Reaction Control System AEGIS Remote Shield Advanced Hacking Suite Advanced Hacking Suite Advanced Hacking Suite Advanced Hacking Suite Makeshift System Shield > --- WEAPON ----------- Vortex Catalyst Activator > --- INVENTORY -------- Inertial Stasis Machine Advanced Hacking Suite Improved Arc Projector HERF Cannon Kinetic Spear [Rating: 180] Favorites ----------- Power Micro Fission Core Engine Light Ion Engine Power Core Micro Fission Core Reactor Light Particle Reactor Propulsion Light Treads Treads Light Treads Leg Potential Leg Wheel Compact Wheel Hover Unit Gravmag Array Flight Unit Cooled Nuclear Pulse Thruster Utility Advanced Hacking Suite Device Improved Heat Sink Storage High-capacity Storage Unit Processor Advanced Signal Interpreter Hackware Advanced Hacking Suite Protection Experimental Utility Shielding Weapon Advanced Beam Cannon Energy Gun Medium Laser Energy Cannon Advanced Beam Cannon Ballistic Gun Assault Rifle Launcher Advanced Micro-nuke Launcher Special Weapon Improved Remote Datajack Impact Weapon Heavy Hammer Slashing Weapon Greatsword Piercing Weapon Kinetic Spear Build | -11 -10 -10 -9 -9 -9 -8 -8 -7 -7 -7 -7 -6 -6 -5 -5 -5 -5 -5 -5 -4 -4 -4 -4 -4 -3 -3 -2 -2 -1 -1 ------- Run | Scr Mat Min Mat Min Exi Min Mat Fac Low Low Dat Pro Fac Fac Was Fac Upp Upp Zhi Pro Fac Upp Upp War Pro Res Res Tes Acc Com Slots Evolved 18 | . . . 2 . . . 2 2 . . . . 2 2 . . . . . . 2 . . . . 2 2 . 2 . Power 1 | . . . . . . . . . . . . . . 1 . . . . . . . . . . . . . . . . Propulsion 6 | . . . 2 . . . . 1 . . . . 1 . . . . . . . . . . . . . . . 2 . Utility 11 | . . . . . . . 2 1 . . . . 1 1 . . . . . . 2 . . . . 2 2 . . . Weapon . | . . . . . . . . . . . . . . . . . . . . . . . . . . . . . . . Parts Attached 354 | 4 11 . 37 13 3 5 38 20 6 1 . 2 9 15 4 23 9 . 12 4 9 1 . 17 3 9 35 15 6 43 Power 33 | . 2 . 2 1 . . 3 1 . . . . 1 2 . 3 2 . . . 2 . . 3 . . 5 2 . 4 Engine 5 | . 2 . 2 . . . 1 . . . . . . . . . . . . . . . . . . . . . . . Core 24 | . . . . 1 . . 2 1 . . . . 1 2 . 3 2 . . . 2 . . 3 . . 5 2 . . Reactor 4 | . . . . . . . . . . . . . . . . . . . . . . . . . . . . . . 4 Propulsion 98 | 3 2 . 16 7 2 . 8 9 . . . 2 4 3 . 7 1 . 2 . 2 . . 4 1 1 5 2 1 16 Treads 20 | . 2 . 15 1 . . 2 . . . . . . . . . . . . . . . . . . . . . . . Leg 8 | . . . . . 2 . 6 . . . . . . . . . . . . . . . . . . . . . . . Wheel 9 | 3 . . . 6 . . . . . . . . . . . . . . . . . . . . . . . . . . Hover 6 | . . . . . . . . . . . . . . . . . . . 1 . . . . . . . . . . 5 Flight 55 | . . . 1 . . . . 9 . . . 2 4 3 . 7 1 . 1 . 2 . . 4 1 1 5 2 1 11 Utility 133 | 1 2 . 4 3 . 1 10 4 4 1 . . 3 5 3 9 4 . 6 2 4 1 . 7 . 6 23 10 3 17 Device 89 | 1 1 . 1 1 . 1 4 1 4 . . . 2 4 3 6 3 . 3 2 2 1 . 4 . 4 15 9 3 14 Storage 12 | . 1 . 1 . . . 1 1 . . . . . . . 1 . . 2 . . . . 1 . . 2 . . 2 Processor 4 | . . . . . . . . 1 . . . . . . . 1 1 . . . . . . . . . 1 . . . Hackware 17 | . . . . . . . 4 1 . 1 . . 1 1 . 1 . . . . 1 . . . . 2 4 . . 1 Protection 11 | . . . 2 2 . . 1 . . . . . . . . . . . 1 . 1 . . 2 . . 1 1 . . Artifact . | . . . . . . . . . . . . . . . . . . . . . . . . . . . . . . . Weapon 90 | . 5 . 15 2 1 4 17 6 2 . . . 1 5 1 4 2 . 4 2 1 . . 3 2 2 2 1 2 6 Energy Gun 7 | . 3 . . . . . 1 . . . . . . . . . . . . . . . . 1 . . . 1 1 . Energy Cannon 44 | . . . 5 1 1 2 12 4 1 . . . . 3 1 3 1 . 3 2 1 . . 1 . 1 . . . 2 Ballistic Gun 9 | . 2 . 7 . . . . . . . . . . . . . . . . . . . . . . . . . . . Ballistic Cannon . | . . . . . . . . . . . . . . . . . . . . . . . . . . . . . . . Launcher 16 | . . . 1 1 . 2 1 1 . . . . . 1 . . 1 . 1 . . . . 1 1 . 1 . 1 3 Special Weapon 5 | . . . 2 . . . . . . . . . . 1 . 1 . . . . . . . . 1 . . . . . Impact Weapon 1 | . . . . . . . 1 . . . . . . . . . . . . . . . . . . . . . . . Slashing Weapon 5 | . . . . . . . 2 1 1 . . . 1 . . . . . . . . . . . . . . . . . Piercing Weapon 3 | . . . . . . . . . . . . . . . . . . . . . . . . . . 1 1 . . 1 Special Melee Weapon . | . . . . . . . . . . . . . . . . . . . . . . . . . . . . . . . Unidentified Prototypes 39 | . . . 3 . . . 2 . . . . . 2 3 2 1 . . 5 . . . . 5 . 1 7 4 2 2 Corrupted Parts 1 | . . . . . . . . . . . . . . . . . . . . . . . . . . . . . . 1 System Corruption 6 | . . . . . . . . . . . . . . . . . . . . . . . . . . . . . . 6 Parts Lost 61 | . 1 . 7 4 . . 1 1 . . . . . 1 . 1 . . . . . . . . . 3 1 4 . 37 Power 6 | . . . . . . . . . . . . . . . . . . . . . . . . . . . 1 1 . 4 Propulsion 23 | . 1 . 2 3 . . 1 . . . . . . 1 . . . . . . . . . . . 3 . . . 12 Utility 24 | . . . 2 1 . . . . . . . . . . . . . . . . . . . . . . . 3 . 18 Weapon 8 | . . . 3 . . . . 1 . . . . . . . 1 . . . . . . . . . . . . . 3 Highest Loss Streak 18 | . 1 . 5 4 . . 1 1 . . . . . 1 . 1 . . . . . . . . . 3 1 4 . 18 Average Slot Usage (%) 94 | . 99 100 98 93 100 99 99 94 91 92 92 92 91 98 100 98 94 94 94 93 90 94 94 93 99 94 92 95 88 72 Engine 4 | . 14 14 11 9 . . 4 . . . . . . . . . . . . . . . . . . . . . . . Core 5 | . . . . 1 11 11 4 7 7 7 7 7 6 11 11 11 11 11 11 11 9 10 10 9 10 9 7 6 8 3 Treads 11 | . 19 28 43 25 . . 8 . . . . . . . . . . . . . . . . . . . . . . . Leg 3 | . . . . . 10 22 25 . . . . . . . . . . . . . . . . . . . . . . . Wheel 2 | . 8 . . 12 34 22 1 . . . . . . . . . . . . . . . . . . . . . . . Flight 15 | . . . . . . . . 37 38 38 38 38 39 34 35 34 35 35 35 35 28 31 31 31 31 26 23 25 24 9 Device 11 | . 13 14 9 5 . 9 13 7 7 7 7 7 6 11 11 9 10 11 10 11 9 10 10 9 10 11 16 19 16 22 Storage 6 | . 14 14 11 11 11 11 9 5 . . . . . . . 1 5 5 5 5 5 5 5 5 5 4 6 4 4 3 Processor 3 | . . . . . . . . . 7 7 7 7 6 5 5 5 6 11 11 11 10 10 10 10 10 9 8 8 8 . Hackware 11 | . . . . . . . 12 23 23 23 23 23 25 23 23 23 15 11 11 11 14 15 15 15 15 18 21 21 20 16 Protection 1 | . . . 1 5 11 . . . . . . . . . . . . . . . 5 5 5 5 5 4 . . . . Energy Cannon 6 | . . . 14 21 22 20 15 5 6 . . . . 3 5 4 4 5 5 3 4 5 5 5 . . . . . . Ballistic Gun 3 | . 21 28 7 . . . . . . . . . . . . . . . . . . . . . . . . . . . Naked Turns . | . . . . . . . . . . . . . . . . . . . . . . . . . . . . . . . Heaviest Build 69 | 15 27 27 57 59 56 56 65 24 17 12 12 12 13 31 30 36 33 32 33 34 35 34 34 35 36 36 43 53 53 69 Greatest Support 83 | 32 40 40 80 80 64 60 60 25 21 21 17 21 34 44 45 48 48 36 36 48 48 36 48 48 48 48 46 58 64 83 Greatest Overweight (x) 5 | . . . . 5 1 . 1 1 . . . . . . . . . . 1 . . . . . . . . 1 . 1 Average Overweight (x) . | . . . . . . . . . . . . . . . . . . . . . . . . . . . . . . . Largest Inventory Capacity 20 | 8 15 15 20 20 20 20 20 20 5 5 5 5 5 5 5 10 10 10 10 10 10 10 10 10 10 10 10 10 10 10 Average Capacity 12 | 8 12 15 19 20 20 20 19 9 5 5 5 5 5 5 5 6 10 10 10 10 10 10 10 10 10 10 9 10 10 5 Most Carried 20 | 8 15 15 20 20 20 20 20 19 5 5 5 5 5 5 5 10 10 10 10 10 10 10 10 10 10 10 10 10 10 10 Average Carried 11 | 6 12 15 18 19 19 19 19 9 4 5 5 5 4 4 4 5 9 10 9 10 9 10 10 9 9 9 8 8 9 4 Final Capacity 20 | 8 15 15 20 20 20 20 20 5 5 5 5 5 5 5 5 10 10 10 10 10 10 10 10 10 10 10 10 10 10 5 Final Carried 20 | 8 15 15 20 20 20 20 19 5 5 5 5 5 5 5 5 10 10 10 10 10 10 10 10 10 10 10 10 10 10 5 Class Distribution -------------------- 23% | Hacker-Sprinter 22% | Mutant 20% | Scavenger-Mutant 11% | Hacker-Scout 11% | Hacker-Mutant 7% | Wizard-Sprinter 3% | Wizard-Scout Dominant Class ---------------- Mutant | -10/Materials Mutant | -10/Mines Scavenger-Mutant | -9/Materials Scavenger-Mutant | -9/Mines Scavenger-Mutant | -9/Exiles Mutant | -8/Mines Scavenger-Mutant | -8/Materials Hacker-Sprinter | -7/Factory Hacker-Sprinter | -7/Lower Caves Hacker-Sprinter | -7/Lower Caves Hacker-Sprinter | -7/Data Miner Hacker-Sprinter | -6/Proximity Caves Hacker-Sprinter | -6/Factory Hacker-Sprinter | -5/Factory Hacker-Sprinter | -5/Waste Hacker-Sprinter | -5/Factory Hacker-Sprinter | -5/Upper Caves Hacker-Scout | -5/Upper Caves Hacker-Scout | -5/Zhirov Hacker-Scout | -4/Proximity Caves Hacker-Mutant | -4/Factory Hacker-Scout | -4/Upper Caves Hacker-Scout | -4/Upper Caves Hacker-Scout | -4/Warlord Hacker-Scout | -3/Proximity Caves Hacker-Sprinter | -3/Research Wizard-Sprinter | -2/Research Wizard-Scout | -2/Testing Wizard-Sprinter | -1/Access Hacker-Mutant | -1/Command Resources | -11 -10 -10 -9 -9 -9 -8 -8 -7 -7 -7 -7 -6 -6 -5 -5 -5 -5 -5 -5 -4 -4 -4 -4 -4 -3 -3 -2 -2 -1 -1 ----------- Run | Scr Mat Min Mat Min Exi Min Mat Fac Low Low Dat Pro Fac Fac Was Fac Upp Upp Zhi Pro Fac Upp Upp War Pro Res Res Tes Acc Com Matter Collected 4800 | 252 254 151 730 143 . 35 485 19 39 121 . 136 55 177 . 228 226 . 110 20 . 49 91 85 15 . 581 175 112 511 Remotely . | . . . . . . . . . . . . . . . . . . . . . . . . . . . . . . . Salvage Created 6419 | 106 760 151 1655 424 . 138 1075 40 . . . . 218 112 . 367 42 . 226 . . . . . . . 723 210 112 60 Parts 300 | 6 50 10 121 11 . 4 47 1 . . . . 3 . . 9 6 . . . . . . . . . 18 4 4 6 Haulers Intercepted 17 | . 2 . 6 . . . 2 . . . . . 2 1 . . . . . . . . . . . . 3 . 1 . Recyclers Shooed 13 | 1 5 2 . . . . 2 . . . . . . . . 1 . . . . . . . . . . 2 . . . Parts Field Recycled . | . . . . . . . . . . . . . . . . . . . . . . . . . . . . . . . Retrieved Matter . | . . . . . . . . . . . . . . . . . . . . . . . . . . . . . . . Parts Self-Destructed 25 | . . . . . . . . . . . . 5 . . . . 12 . . . . . . 8 . . . . . . Prevented 15 | . . . . . . . . . . . . . . . . . 2 . . . . . . 13 . . . . . . Kills | -11 -10 -10 -9 -9 -9 -8 -8 -7 -7 -7 -7 -6 -6 -5 -5 -5 -5 -5 -5 -4 -4 -4 -4 -4 -3 -3 -2 -2 -1 -1 ------- Run | Scr Mat Min Mat Min Exi Min Mat Fac Low Low Dat Pro Fac Fac Was Fac Upp Upp Zhi Pro Fac Upp Upp War Pro Res Res Tes Acc Com Combat Hostiles Destroyed 89 | . 10 . 31 12 . 3 16 4 . . . . . . . 3 5 . . . . . . . . . . 4 . 1 Melee 2 | . . . . . . . 1 . . . . . . . . . . . . . . . . . . . . . . 1 Guns 27 | . 10 . 17 . . . . . . . . . . . . . . . . . . . . . . . . . . . Cannons 30 | . . . 10 4 . 1 10 2 . . . . . . . 3 . . . . . . . . . . . . . . AOE 25 | . . . 4 8 . 2 . 2 . . . . . . . . 5 . . . . . . . . . . 4 . . Classes Destroyed 18 | 2 6 . 4 2 . 1 1 1 . . . . . . . . . . . . . . . . . . . 1 . . Worker 4 | . . . 1 . . . 1 . . . . . . . . . . . . . . . . . . . 1 1 . . Builder 3 | . . . 1 . . 1 . . . . . . . . . . . . . . . . . . . . . 1 . . Tunneler 2 | 1 1 . . . . . . . . . . . . . . . . . . . . . . . . . . . . . Hauler 17 | . 2 . 6 . . . 2 . . . . . 2 1 . . . . . . . . . . . . 3 . 1 . Recycler 16 | 1 2 1 2 4 . 1 1 . . . . . . . . 1 . . . . . . . . . . 3 . . . Mechanic 2 | . 1 . . . . . . . . . . . . . . . . . . . . . . . . . 1 . . . Operator 7 | . 3 . 3 . . . 1 . . . . . . . . . . . . . . . . . . . . . . . Watcher 7 | . 3 . 2 . . . 1 . . . . . . . . 1 . . . . . . . . . . . . . . Swarmer 21 | . 2 . 11 . . . . 3 . . . . . . . . 5 . . . . . . . . . . . . . Grunt 37 | . 8 . 11 . . 2 11 . . . . . . . . 1 . . . . . . . . . . . 4 . . Brawler 2 | . . . . . . 1 1 . . . . . . . . . . . . . . . . . . . . . . . Duelist 1 | . . . 1 . . . . . . . . . . . . . . . . . . . . . . . . . . . Researcher 1 | . . . . . . . . . . . . . . . . . . . . . . . . . . . . 1 . . Sentry 13 | . . . 8 . . . 3 . . . . . . . . 2 . . . . . . . . . . . . . . Demolisher 2 | . . . . 2 . . . . . . . . . . . . . . . . . . . . . . . . . . Hunter 1 | . . . . . . . 1 . . . . . . . . . . . . . . . . . . . . . . . Programmer 2 | . . . . . . . . 1 . . . . . . . . . . . . . . . . . . . . . 1 Assembled 10 | . . . . 10 . . . . . . . . . . . . . . . . . . . . . . . . . . Best Kill Streak 8 | 1 3 1 6 8 . 3 4 4 . . . . 1 1 . 1 5 . . . . . . . . . 3 6 1 1 Combat Bots Only 8 | . 2 . 4 8 . 3 4 4 . . . . . . . 1 5 . . . . . . . . . . 4 . 1 Max Kills in Single Turn 6 | 1 1 1 2 6 . 1 1 2 . . . . 1 1 . 1 3 . . . . . . . . . 1 2 1 1 Gunslinging . | . . . . . . . . . . . . . . . . . . . . . . . . . . . . . . . Exploded 6 | . . . 2 6 . 1 . 2 . . . . . . . . 3 . . . . . . . . . . 2 . . Melee 1 | . . . . . . . 1 . . . . . . . . . . . . . . . . . . . . . . 1 Uniques/NPCs Destroyed . | . . . . . . . . . . . . . . . . . . . . . . . . . . . . . . . Combat | -11 -10 -10 -9 -9 -9 -8 -8 -7 -7 -7 -7 -6 -6 -5 -5 -5 -5 -5 -5 -4 -4 -4 -4 -4 -3 -3 -2 -2 -1 -1 -------- Run | Scr Mat Min Mat Min Exi Min Mat Fac Low Low Dat Pro Fac Fac Was Fac Upp Upp Zhi Pro Fac Upp Upp War Pro Res Res Tes Acc Com Damage Taken 10310 | . 471 . 1497 816 . 179 783 119 15 49 . 91 146 105 . 287 80 . . 47 25 . 140 . 95 268 253 587 138 4119 Core 2771 | . 102 . 231 117 . 30 193 16 . . . 34 12 . . 28 13 . . 34 . . 57 . . 135 20 141 66 1542 Absorbed by Shields 1294 | . . . . . . . . . . . . . . 16 . . . . . . . . . . . . . 51 . 1227 Core Remaining (%) 77 | 100 . 59 . . . 5 64 . . . . 92 98 . . . . . . 92 . . . . 95 80 . 88 . . Volleys Fired 489 | 4 68 3 124 19 . 8 72 8 . . . . . 36 . 45 38 10 10 5 3 10 2 . 4 . . 5 . 15 Largest 2 | 2 2 2 2 2 . 2 2 1 . . . . . 1 . 1 1 1 1 1 1 1 1 . 1 . . 1 . 1 Hottest 136 | 70 90 40 136 136 . 136 136 120 . . . . . 98 . 120 98 98 98 120 105 105 105 . 46 . . 30 . 88 Shots Fired 749 | 8 136 6 243 35 . 10 121 8 . . . . . 36 . 45 38 10 10 4 3 10 2 . 4 . . 5 . 15 Gun 320 | 8 136 6 170 . . . . . . . . . . . . . . . . . . . . . . . . . . . Cannon 386 | . . . 66 32 . 4 121 4 . . . . . 35 . 45 36 10 10 4 3 10 2 . . . . . . 4 Launcher 40 | . . . 5 3 . 6 . 4 . . . . . . . . 2 . . . . . . . 4 . . 5 . 11 Special 3 | . . . 2 . . . . . . . . . . 1 . . . . . . . . . . . . . . . . Kinetic 246 | 4 66 6 170 . . . . . . . . . . . . . . . . . . . . . . . . . . . Thermal 458 | 4 70 . 68 32 . 4 121 4 . . . . . 35 . 45 36 10 10 4 3 10 2 . . . . . . . Explosive 34 | . . . 5 3 . 6 . 4 . . . . . . . . 2 . . . . . . . 4 . . 5 . 5 Electromagnetic 4 | . . . . . . . . . . . . . . . . . . . . . . . . . . . . . . 4 Entropic 6 | . . . . . . . . . . . . . . . . . . . . . . . . . . . . . . 6 Robot Hit Streak 25 | 3 13 10 18 13 . 15 15 2 . . . . . 12 . 25 . . 6 . . . . . . . . 2 . 4 Robot Miss Streak 5 | 1 3 1 5 3 . 3 2 1 . . . . . . . . . . 1 . . . . . . . . 1 . 1 Penetration Max . | . . . . . . . . . . . . . . . . . . . . . . . . . . . . . . . Secondary Targets 6 | . 2 . 4 . . . . . . . . . . . . . . . . . . . . . . . . . . . Max Gunslinging Chain 1 | . 1 . 1 . . . . . . . . . . . . . . . . . . . . . . . . . . . Capacitor 3 | . . . . . . . . . . . . . . . . . . . . . . . . . . . . . . 3 Shots Hit Robots 443 | 6 89 4 156 20 . 3 75 2 . . . . 9 10 . 13 . . 8 . . . . . . . 16 8 6 18 Core Hits 257 | 3 43 5 67 21 . 10 29 8 . . . . 2 2 . 9 5 . 6 . . . . . . . 10 26 2 9 Critical Kills 7 | . 1 . . . . . 6 . . . . . . . . . . . . . . . . . . . . . . . Critical Parts Destroyed . | . . . . . . . . . . . . . . . . . . . . . . . . . . . . . . . Critical Strikes 10 | . 2 . . . . . 6 . . . . . . . . . . . . . . . . . . . 1 1 . . Burn 1 | . 1 . . . . . . . . . . . . . . . . . . . . . . . . . . . . . Meltdown 6 | . . . . . . . 6 . . . . . . . . . . . . . . . . . . . . . . . Destroy 1 | . 1 . . . . . . . . . . . . . . . . . . . . . . . . . . . . . Puncture 2 | . . . . . . . . . . . . . . . . . . . . . . . . . . . 1 1 . . Melee Attacks 140 | . . . . . . . 10 6 . . . 2 17 12 . . . . . . . . . . . . 24 28 16 25 Impact 3 | . . . . . . . 3 . . . . . . . . . . . . . . . . . . . . . . . Slashing 44 | . . . . . . . 7 6 . . . 2 17 12 . . . . . . . . . . . . . . . . Piercing 93 | . . . . . . . . . . . . . . . . . . . . . . . . . . . 24 28 16 25 Sneak Attacks 9 | . . . . . . . . . . . . . 2 . . . . . . . . . . . . . 6 . 1 . Combat Hostiles . | . . . . . . . . . . . . . . . . . . . . . . . . . . . . . . . Follow-up Attacks . | . . . . . . . . . . . . . . . . . . . . . . . . . . . . . . . Damage Inflicted 16087 | 76 1068 102 2562 820 . 467 1794 364 . . . . 733 313 . 834 375 . 235 . . . . . . . 1519 2012 434 2379 Guns 2465 | 76 1064 44 1281 . . . . . . . . . . . . . . . . . . . . . . . . . . . Cannons 4590 | . . . 934 441 . 21 1626 117 . . . . . 313 . 834 . . 235 . . . . . . . . . . 69 Explosions 5296 | . . . 274 379 . 446 . 247 . . . . . . . . 375 . . . . . . . . . . 1721 . 1854 Melee 3538 | . . . . . . . 161 . . . . . 733 . . . . . . . . . . . . . 1463 291 434 456 Ramming 185 | . 4 58 60 . . . 7 . . . . . . . . . . . . . . . . . . . 56 . . . Kinetic 1841 | 26 490 44 1281 . . . . . . . . . . . . . . . . . . . . . . . . . . . Thermal 5158 | 50 574 . 947 441 . 21 1626 117 . . . . . 313 . 834 . . 235 . . . . . . . . . . . Explosive 3633 | . . . 274 379 . 446 . 247 . . . . . . . . 375 . . . . . . . . . . 1721 . 191 Electromagnetic 69 | . . . . . . . . . . . . . . . . . . . . . . . . . . . . . . 69 Impact 78 | . . . . . . . 78 . . . . . . . . . . . . . . . . . . . . . . . Slashing 816 | . . . . . . . 83 . . . . . 733 . . . . . . . . . . . . . . . . . Piercing 2644 | . . . . . . . . . . . . . . . . . . . . . . . . . . . 1463 291 434 456 Entropic 1663 | . . . . . . . . . . . . . . . . . . . . . . . . . . . . . . 1663 Highest Corruption 27 | . . . . . . . . . . . . . . 4 4 4 1 1 1 1 . . . . . . . . . 27 Average Corruption 5 | . . . . . . . . . . . . . . 2 4 3 1 1 1 1 . . . . . . . . . 11 Corruption Purged 3 | . . . . . . . . . . . . . . . . 3 . . . . . . . . . . . . . . Effects 64 | . . . . . . . . . . . . . . 3 1 18 1 1 1 . . . . . . . . . . 39 Message Errors 20 | . . . . . . . . . . . . . . 2 1 8 1 1 . . . . . . . . . . . 7 Matter Fused 15 | . . . . . . . . . . . . . . . . 3 . . . . . . . . . . . . . 12 Heat Flow Errors 8 | . . . . . . . . . . . . . . . . 3 . . . . . . . . . . . . . 5 Energy Discharges 10 | . . . . . . . . . . . . . . 1 . 1 . . . . . . . . . . . . . 8 Parts Rejected 3 | . . . . . . . . . . . . . . . . 1 . . . . . . . . . . . . . 2 Data Loss (minor) 7 | . . . . . . . . . . . . . . . . 2 . . 1 . . . . . . . . . . 4 Misdirections 1 | . . . . . . . . . . . . . . . . . . . . . . . . . . . . . . 1 Overload Shots . | . . . . . . . . . . . . . . . . . . . . . . . . . . . . . . . Overflow Damage 789 | . . 1 56 15 . 8 50 . . . . . 155 . . 11 28 . 29 . . . . . . . 246 26 47 117 Projectiles 91 | . . . . 14 . . 37 . . . . . . . . 11 . . 29 . . . . . . . . . . . Explosions 180 | . . . 56 1 . 8 . . . . . . . . . . 28 . . . . . . . . . . 17 . 70 Melee 518 | . . 1 . . . . 13 . . . . . 155 . . . . . . . . . . . . . 246 9 47 47 Knockbacks 2 | . . . 1 . . . . . . . . . . . . . . . . . . . . . . . 1 . . . Impact 2 | . . . 1 . . . . . . . . . . . . . . . . . . . . . . . 1 . . . Kinetic . | . . . . . . . . . . . . . . . . . . . . . . . . . . . . . . . Secondary . | . . . . . . . . . . . . . . . . . . . . . . . . . . . . . . . Self-Inflicted Damage 325 | . . . 94 44 . 84 . . . . . . . . . . . . . . . . . . . . 28 . . 75 Shots 9 | . . . 2 1 . 5 . . . . . . . . . . . . . . . . . . . . . . . 1 Rammed 28 | . 1 21 4 . . . . . . . . . . . . . . . . . . . . . . . 2 . . . Targets Rammed 30 | . 1 22 4 . . . 1 . . . . . . . . . . . . . . . . . . . 2 . . . Kicked 1 | . . . . . . . 1 . . . . . . . . . . . . . . . . . . . . . . . Crushed 1 | . . 1 . . . . . . . . . . . . . . . . . . . . . . . . . . . . Highest Temperature 343 | 38 40 . 108 310 . 191 234 208 173 149 3 255 269 17 119 264 343 218 102 181 180 92 261 12 94 69 . 111 272 162 Average Temperature 60 | 16 21 . 28 88 . 81 50 59 71 31 2 31 81 7 66 66 80 73 42 84 80 46 118 12 40 29 . 47 102 67 Received Heat Transfer 1381 | . 153 . 456 60 . 72 414 . . . . 9 30 . . 45 . . . . . . 45 . . . 9 18 . 70 Effects 4 | . . . . . . . . 1 . . . . . . . 3 . . . . . . . . . . . . . . Energy Bleed 1 | . . . . . . . . 1 . . . . . . . . . . . . . . . . . . . . . . Interference 3 | . . . . . . . . . . . . . . . . 3 . . . . . . . . . . . . . . Siege Activations . | . . . . . . . . . . . . . . . . . . . . . . . . . . . . . . . Robots Corrupted . | . . . . . . . . . . . . . . . . . . . . . . . . . . . . . . . Combat Hostiles . | . . . . . . . . . . . . . . . . . . . . . . . . . . . . . . . Parts Fried . | . . . . . . . . . . . . . . . . . . . . . . . . . . . . . . . Impact Corruptions 1 | . . 1 . . . . . . . . . . . . . . . . . . . . . . . . . . . . Robots Melted 6 | . . . . . . . 6 . . . . . . . . . . . . . . . . . . . . . . . Combat Hostiles 5 | . . . . . . . 5 . . . . . . . . . . . . . . . . . . . . . . . Parts Melted 26 | . 5 . 1 1 . . 10 . . . . . . 2 . 7 . . . . . . . . . . . . . . Heat Transferred 9836 | 148 1622 . 1628 777 . 37 2947 240 . . . . . 333 . 1920 . . 184 . . . . . . . . . . . Parts Sabotaged 4 | . . . . . . . . . . . . . . . . . . . . . . . . 4 . . . . . . Parts Stolen . | . . . . . . . . . . . . . . . . . . . . . . . . . . . . . . . Parts Stripped . | . . . . . . . . . . . . . . . . . . . . . . . . . . . . . . . Power Chain Reactions . | . . . . . . . . . . . . . . . . . . . . . . . . . . . . . . . Missiles Intercepted . | . . . . . . . . . . . . . . . . . . . . . . . . . . . . . . . Alert | -11 -10 -10 -9 -9 -9 -8 -8 -7 -7 -7 -7 -6 -6 -5 -5 -5 -5 -5 -5 -4 -4 -4 -4 -4 -3 -3 -2 -2 -1 -1 ------- Run | Scr Mat Min Mat Min Exi Min Mat Fac Low Low Dat Pro Fac Fac Was Fac Upp Upp Zhi Pro Fac Upp Upp War Pro Res Res Tes Acc Com Peak Influence 652 | 10 270 21 393 162 . 103 304 325 . . . . 259 307 122 389 . . . . 98 . . . . 340 297 652 464 431 Initial 391 | . 6 1 7 117 . . 39 58 . . . . 76 15 107 85 . . . . 37 . . . . 50 126 130 391 19 Average 159 | 6 78 11 224 128 . 93 147 210 . . . . 119 102 109 153 . . . . 42 . . . . 185 209 389 300 136 Maximum Alert Level 2 | . 1 . 1 . . . 1 1 . . . . 1 1 . 1 . . . . . . . . . 1 1 2 2 2 Low Security (%) 65 | 100 89 100 31 100 . 100 75 51 . . . . 92 81 100 69 . . . . 100 . . . . 45 39 8 23 74 Level 1 32 | . 10 . 68 . . . 24 48 . . . . 7 18 . 30 . . . . . . . . . 54 60 52 39 25 Level 2 2 | . . . . . . . . . . . . . . . . . . . . . . . . . . . . 39 36 . Level 3 . | . . . . . . . . . . . . . . . . . . . . . . . . . . . . . . . Level 4 . | . . . . . . . . . . . . . . . . . . . . . . . . . . . . . . . Level 5 . | . . . . . . . . . . . . . . . . . . . . . . . . . . . . . . . High Security . | . . . . . . . . . . . . . . . . . . . . . . . . . . . . . . . Max Security . | . . . . . . . . . . . . . . . . . . . . . . . . . . . . . . . Squads Dispatched 25 | . 3 . 2 . . 1 3 . . . . . . 1 . . . . . . 1 . . . . 1 3 4 . 6 Investigation 5 | . . . . . . . 1 . . . . . . . . . . . . . . . . . . 1 . . . 3 Extermination 5 | . . . . . . . . . . . . . . 1 . . . . . . 1 . . . . . . 1 . 2 Reinforcement 15 | . 3 . 2 . . 1 2 . . . . . . . . . . . . . . . . . . . 3 3 . 1 Assault . | . . . . . . . . . . . . . . . . . . . . . . . . . . . . . . . Garrison . | . . . . . . . . . . . . . . . . . . . . . . . . . . . . . . . Intercept . | . . . . . . . . . . . . . . . . . . . . . . . . . . . . . . . Construction Impeded 1 | . . . . . . 1 . . . . . . . . . . . . . . . . . . . . . . . . Haulers Reinforced 4 | . . . . . . . . . . . . . . . . . . . . . . . . . . . 2 2 . . Active Scanning Responses . | . . . . . . . . . . . . . . . . . . . . . . . . . . . . . . . Cargo Convoy Interrupts . | . . . . . . . . . . . . . . . . . . . . . . . . . . . . . . . Stealth | -11 -10 -10 -9 -9 -9 -8 -8 -7 -7 -7 -7 -6 -6 -5 -5 -5 -5 -5 -5 -4 -4 -4 -4 -4 -3 -3 -2 -2 -1 -1 --------- Run | Scr Mat Min Mat Min Exi Min Mat Fac Low Low Dat Pro Fac Fac Was Fac Upp Upp Zhi Pro Fac Upp Upp War Pro Res Res Tes Acc Com Distress Signals 16 | . 2 . 1 . . . 1 . . . . . . 1 . 3 . . . . . . . . . 2 3 . 2 1 Communications Jammed . | . . . . . . . . . . . . . . . . . . . . . . . . . . . . . . . Distress Signals . | . . . . . . . . . . . . . . . . . . . . . . . . . . . . . . . Times Spotted 363 | . 28 . 44 16 . 3 31 10 4 7 . 6 14 24 6 12 8 . . 4 6 . 12 1 5 21 17 24 15 45 Peak Tracking Total 16 | . 6 . 4 12 . 3 4 5 3 9 . 3 6 12 6 5 5 . . 4 5 . 8 1 9 11 6 9 11 16 Tactical Retreats 35 | . . . 2 1 . . 2 2 . . . . 2 3 . 2 1 . . 1 . . 2 . 2 3 2 3 4 3 Traps | -11 -10 -10 -9 -9 -9 -8 -8 -7 -7 -7 -7 -6 -6 -5 -5 -5 -5 -5 -5 -4 -4 -4 -4 -4 -3 -3 -2 -2 -1 -1 ------- Run | Scr Mat Min Mat Min Exi Min Mat Fac Low Low Dat Pro Fac Fac Was Fac Upp Upp Zhi Pro Fac Upp Upp War Pro Res Res Tes Acc Com Traps Triggered 16 | . . . . . . . . 1 . . . . . 4 . 1 . . . . 1 . . . . 1 . 2 . 6 Indirectly . | . . . . . . . . . . . . . . . . . . . . . . . . . . . . . . . Trap Hack Attempts . | . . . . . . . . . . . . . . . . . . . . . . . . . . . . . . . Triggered . | . . . . . . . . . . . . . . . . . . . . . . . . . . . . . . . Disarmed . | . . . . . . . . . . . . . . . . . . . . . . . . . . . . . . . Reprogrammed . | . . . . . . . . . . . . . . . . . . . . . . . . . . . . . . . Reused . | . . . . . . . . . . . . . . . . . . . . . . . . . . . . . . . Traps Extracted . | . . . . . . . . . . . . . . . . . . . . . . . . . . . . . . . Installed . | . . . . . . . . . . . . . . . . . . . . . . . . . . . . . . . Triggered 11 | . . . . . . . . . . . . . . . . . . . . . . 1 3 6 . . . . 1 . Machines | -11 -10 -10 -9 -9 -9 -8 -8 -7 -7 -7 -7 -6 -6 -5 -5 -5 -5 -5 -5 -4 -4 -4 -4 -4 -3 -3 -2 -2 -1 -1 ---------- Run | Scr Mat Min Mat Min Exi Min Mat Fac Low Low Dat Pro Fac Fac Was Fac Upp Upp Zhi Pro Fac Upp Upp War Pro Res Res Tes Acc Com Machines Disabled 18 | . . . 3 . . . . 3 . . . 1 . 1 . 1 . . 1 . . . . . . . . 5 . 3 Max in Single Turn 2 | . . . 2 . . . . 2 . . . 1 . 1 . 1 . . 1 . . . . . . . . 1 . 1 Garrison Access 8 | . . . . . . . . . . . . . 1 . . 1 . . . . 1 . . . . 1 3 1 . . Machines Sabotaged . | . . . . . . . . . . . . . . . . . . . . . . . . . . . . . . . Garrisons Compromised . | . . . . . . . . . . . . . . . . . . . . . . . . . . . . . . . Overloaded Fab Kills . | . . . . . . . . . . . . . . . . . . . . . . . . . . . . . . . Fab Network Shutdowns . | . . . . . . . . . . . . . . . . . . . . . . . . . . . . . . . Hacking | -11 -10 -10 -9 -9 -9 -8 -8 -7 -7 -7 -7 -6 -6 -5 -5 -5 -5 -5 -5 -4 -4 -4 -4 -4 -3 -3 -2 -2 -1 -1 --------- Run | Scr Mat Min Mat Min Exi Min Mat Fac Low Low Dat Pro Fac Fac Was Fac Upp Upp Zhi Pro Fac Upp Upp War Pro Res Res Tes Acc Com Machines Accessed 127 | . 7 . 9 . 2 . 13 6 . . 4 1 14 6 . 19 2 . 5 1 7 . 1 2 . 5 2 6 4 11 Terminals 71 | . 5 . 7 . . . 10 4 . . . . 10 3 . 11 . . . 1 2 . . . . 2 . 4 4 8 Fabricators 6 | . . . . . . . . 2 . . . . . . . 1 . . . . 2 . . . . . . 1 . . Repair Stations 6 | . . . 1 . . . . . . . . . 1 . . 2 . . . . 1 . . . . . . . . 1 Recycling Units 15 | . 2 . 1 . . . 1 . . . . . 2 3 . 2 . . . . . . . . . 2 . . . 2 Scanalyzers 5 | . . . . . . . 2 . . . . . . . . 2 . . . . 1 . . . . . . . . . Garrison Access 7 | . . . . . . . . . . . . . 1 . . 1 . . . . 1 . . . . 1 2 1 . . Total Hacks 461 | . 27 . 36 . 2 . 60 27 . . 29 1 59 23 . 64 2 . 18 1 27 . 1 2 . 19 3 13 22 25 Successful 307 | . 12 . 17 . 2 . 37 19 . . 29 1 37 15 . 46 2 . 18 1 17 . 1 2 . 16 2 8 9 16 Failed 153 | . 15 . 19 . . . 23 8 . . . . 21 8 . 18 . . . . 10 . . . . 3 1 5 13 9 Catastrophic 6 | . . . . . . . 1 2 . . . . . . . 1 . . . . . . . . . . . 1 1 . Database Lockouts 1 | . . . . . . . . . . . . . 1 . . . . . . . . . . . . . . . . . Manual 212 | . 23 . 16 . 1 . 36 17 . . . . 33 15 . 30 . . . . 9 . . 1 . 7 . 5 15 4 Terminals 278 | . 17 . 26 . . . 49 13 . . . . 43 13 . 44 . . . 1 11 . . . . 10 . 9 22 20 Fabricators 23 | . . . . . . . . 14 . . . . . . . 2 . . . . 5 . . . . . . 2 . . Repair Stations 27 | . . . 7 . . . . . . . . . 4 . . 4 . . . . 9 . . . . . . . . 3 Recycling Units 54 | . 10 . 3 . . . 3 . . . . . 11 10 . 7 . . . . . . . . . 8 . . . 2 Scanalyzers 15 | . . . . . . . 8 . . . . . . . . 6 . . . . 1 . . . . . . . . . Garrison Access 9 | . . . . . . . . . . . . . 1 . . 1 . . . . 1 . . . . 1 3 2 . . Terminal Hacks 165 | . 5 . 7 . 2 . 17 5 . . 29 1 16 4 . 18 2 . 18 1 4 . 1 2 . 7 . 5 8 13 Record 21 | . . . . . 1 . . . . . 11 1 . . . . 1 . 6 1 . . . . . . . . . . Part Schematic 21 | . . . . . . . 2 . . . 9 . 5 . . 1 . . 4 . . . . . . . . . . . Robot Schematic 6 | . . . . . . . . . . . 6 . . . . . . . . . . . . . . . . . . . Robot Analysis 15 | . 5 . 2 . . . . 1 . . . . 1 . . . . . 4 . . . . . . . . 2 . . Prototype ID Bank 12 | . . . . . . . 2 1 . . 3 . . . . 2 . . 4 . . . . . . . . . . . Open Door 5 | . . . . . . . . . . . . . . . . . 1 . . . . . 1 2 . . . . . 1 Level Access Points 6 | . . . . . . . 1 . . . . . 2 . . 1 . . . . . . . . . 1 . 1 . . Branch Access Points 7 | . . . 1 . . . 1 1 . . . . 1 . . 1 . . . . 1 . . . . 1 . . . . Emergency Access Points 5 | . . . . . . . . . . . . . 1 . . 1 . . . . . . . . . . . . . 3 Machine Index 4 | . . . . . . . . . . . . . . . . . . . . . 1 . . . . 1 . 1 . 1 Terminal Index 8 | . . . 1 . . . 1 1 . . . . 1 1 . 1 . . . . . . . . . 1 . 1 . . Fabricator Index 1 | . . . . . . . . . . . . . . 1 . . . . . . . . . . . . . . . . Alert Level 4 | . . . . . . . 1 . . . . . . . . 2 . . . . . . . . . . . . 1 . Unreport Threat 12 | . . . 1 . . . 1 . . . . . 2 . . 1 . . . . . . . . . 1 . . 6 . Locate Traps 17 | . . . 1 . . . 5 . . . . . 3 1 . 2 . . . . 1 . . . . . . . 1 3 Security Status 1 | . . . . . . . 1 . . . . . . . . . . . . . . . . . . . . . . . Patrol Status 2 | . . . . . . . 2 . . . . . . . . . . . . . . . . . . . . . . . Recall Extermination 1 | . . . . . . . . . . . . . . 1 . . . . . . . . . . . . . . . . Hauler Manifests 1 | . . . 1 . . . . . . . . . . . . . . . . . . . . . . . . . . . Registered Components 3 | . . . . . . . . 1 . . . . . . . 1 . . . . . . . . . . . . . 1 Registered Prototypes 3 | . . . . . . . . . . . . . . . . 1 . . . . . . . . . 1 . . . 1 Zone Layout 8 | . . . . . . . . . . . . . . . . 4 . . . . 1 . . . . 1 . . . 2 EX-Prototype ID Bank 1 | . . . . . 1 . . . . . . . . . . . . . . . . . . . . . . . . . Disengage Seal 1 | . . . . . . . . . . . . . . . . . . . . . . . . . . . . . . 1 Fabricator Hacks 9 | . . . . . . . . 6 . . . . . . . 1 . . . . . . . . . . . 2 . . Network Status 1 | . . . . . . . . 1 . . . . . . . . . . . . . . . . . . . . . . Load Schematic 4 | . . . . . . . . 2 . . . . . . . 1 . . . . . . . . . . . 1 . . Build 4 | . . . . . . . . 3 . . . . . . . . . . . . . . . . . . . 1 . . Repair Station Hacks 20 | . . . 4 . . . . . . . . . 3 . . 4 . . . . 8 . . . . . . . . 1 Scan Component 10 | . . . 2 . . . . . . . . . 2 . . 2 . . . . 4 . . . . . . . . . Repair 9 | . . . 2 . . . . . . . . . 1 . . 2 . . . . 4 . . . . . . . . . Refit 1 | . . . . . . . . . . . . . . . . . . . . . . . . . . . . . . 1 Recycling Unit Hacks 15 | . 2 . 1 . . . 1 . . . . . 3 2 . 2 . . . . . . . . . 2 . . . 2 Retrieve Components 15 | . 2 . 1 . . . 1 . . . . . 3 2 . 2 . . . . . . . . . 2 . . . 2 Scanalyzer 15 | . . . . . . . 8 . . . . . . . . 6 . . . . 1 . . . . . . . . . Insert Component 7 | . . . . . . . 4 . . . . . . . . 2 . . . . 1 . . . . . . . . . Analyze 8 | . . . . . . . 4 . . . . . . . . 4 . . . . . . . . . . . . . . Garrison Access Hacks 7 | . . . . . . . . . . . . . 1 . . 1 . . . . 1 . . . . 1 2 1 . . Seal Access 7 | . . . . . . . . . . . . . 1 . . 1 . . . . 1 . . . . 1 2 1 . . Unauthorized Hacks 76 | . 5 . 5 . . . 11 8 . . . . 14 9 . 14 . . . . 3 . . . . 6 . . 1 . Terminals 44 | . 2 . 4 . . . 11 3 . . . . 8 3 . 10 . . . . 2 . . . . . . . 1 . Track 3 | . . . . . . . . . . . . . 1 . . 1 . . . . 1 . . . . . . . . . Assimilate 7 | . . . . . . . 2 . . . . . 2 . . 3 . . . . . . . . . . . . . . Botnet 26 | . 1 . 3 . . . 8 2 . . . . 4 2 . 4 . . . . 1 . . . . . . . 1 . Operators 8 | . 1 . 1 . . . 1 1 . . . . 1 1 . 2 . . . . . . . . . . . . . . Fabricators 6 | . . . . . . . . 5 . . . . . . . . . . . . 1 . . . . . . . . . Report 1 | . . . . . . . . 1 . . . . . . . . . . . . . . . . . . . . . . Prioritize 1 | . . . . . . . . 1 . . . . . . . . . . . . . . . . . . . . . . Siphon 2 | . . . . . . . . 2 . . . . . . . . . . . . . . . . . . . . . . Haulers 2 | . . . . . . . . 1 . . . . . . . . . . . . 1 . . . . . . . . . Repair Stations 1 | . . . 1 . . . . . . . . . . . . . . . . . . . . . . . . . . . Mechanics 1 | . . . 1 . . . . . . . . . . . . . . . . . . . . . . . . . . . Recycling Units 25 | . 3 . . . . . . . . . . . 6 6 . 4 . . . . . . . . . 6 . . . . Monitor 4 | . . . . . . . . . . . . . 1 1 . 1 . . . . . . . . . 1 . . . . Reject 8 | . 1 . . . . . . . . . . . 2 2 . 1 . . . . . . . . . 2 . . . . Recyclers 5 | . 1 . . . . . . . . . . . 1 1 . 1 . . . . . . . . . 1 . . . . Mask 8 | . 1 . . . . . . . . . . . 2 2 . 1 . . . . . . . . . 2 . . . . Scanalyzers . | . . . . . . . . . . . . . . . . . . . . . . . . . . . . . . . Garrison Access . | . . . . . . . . . . . . . . . . . . . . . . . . . . . . . . . Data Cores Recovered 1 | . . . 1 . . . . . . . . . . . . . . . . . . . . . . . . . . . Used 1 | . . . 1 . . . . . . . . . . . . . . . . . . . . . . . . . . . Hacking Detections 92 | . 7 . 9 . . . 11 5 . . . . 13 5 . 16 . . . . 5 . . . . 3 1 4 4 9 Full Trace Events 2 | . . . . . . . 1 . . . . . . . . . . . . . . . . . . . . . . 1 Feedback Events . | . . . . . . . . . . . . . . . . . . . . . . . . . . . . . . . Feedback Blocked . | . . . . . . . . . . . . . . . . . . . . . . . . . . . . . . . Robot Schematics Acquired 6 | . . . . . . . . . . . 6 . . . . . . . . . . . . . . . . . . . Robots Built . | . . . . . . . . . . . . . . . . . . . . . . . . . . . . . . . Matter . | . . . . . . . . . . . . . . . . . . . . . . . . . . . . . . . Time . | . . . . . . . . . . . . . . . . . . . . . . . . . . . . . . . Total Robot Build Rating . | . . . . . . . . . . . . . . . . . . . . . . . . . . . . . . . Part Schematics Acquired 27 | . . . . . . . 6 . . . 9 . 5 . . 3 . . 4 . . . . . . . . . . . Parts Built 8 | . . . . . . . . 6 . . . . . . . . . . . . . . . . . . . 2 . . Matter 539 | . . . . . . . . 327 . . . . . . . . . . . . . . . . . . . 212 . . Time 235 | . . . . . . . . 182 . . . . . . . . . . . . . . . . . . . 53 . . Total Part Build Rating 30 | . . . . . . . . 18 . . . . . . . . . . . . . . . . . . . 12 . . Parts Repaired 9 | . . . 2 . . . . . . . . . 1 . . 2 . . . . 4 . . . . . . . . . Time 460 | . . . 52 . . . . . . . . . 22 . . 120 . . . . 266 . . . . . . . . . Parts Recycled . | . . . . . . . . . . . . . . . . . . . . . . . . . . . . . . . Recycled Matter . | . . . . . . . . . . . . . . . . . . . . . . . . . . . . . . . Retrieved Matter . | . . . . . . . . . . . . . . . . . . . . . . . . . . . . . . . Retrieved Components 48 | . 12 . 9 . . . 7 . . . . . 3 3 . 3 . . . . . . . . . 1 . . . 10 Parts Scanalyzed 6 | . . . . . . . 4 . . . . . . . . 2 . . . . . . . . . . . . . . Part Schematics Acquired 6 | . . . . . . . 4 . . . . . . . . 2 . . . . . . . . . . . . . . Parts Damaged 1 | . . . . . . . . . . . . . . . . 1 . . . . . . . . . . . . . . Bothacking | -11 -10 -10 -9 -9 -9 -8 -8 -7 -7 -7 -7 -6 -6 -5 -5 -5 -5 -5 -5 -4 -4 -4 -4 -4 -3 -3 -2 -2 -1 -1 ------------ Run | Scr Mat Min Mat Min Exi Min Mat Fac Low Low Dat Pro Fac Fac Was Fac Upp Upp Zhi Pro Fac Upp Upp War Pro Res Res Tes Acc Com Used RIF Installer . | . . . . . . . . . . . . . . . . . . . . . . . . . . . . . . . Robots Hacked 1 | . . . . . . . . . . . . . . 1 . . . . . . . . . . . . . . . . Non-combat 1 | . . . . . . . . . . . . . . 1 . . . . . . . . . . . . . . . . Combat . | . . . . . . . . . . . . . . . . . . . . . . . . . . . . . . . Robot Hacks Applied 1 | . . . . . . . . . . . . . . 1 . . . . . . . . . . . . . . . . find_chute 1 | . . . . . . . . . . . . . . 1 . . . . . . . . . . . . . . . . Relay Couplers Released 2 | . . . . . . . . . . . . . . . . . . . . . . . . . . . 2 . . . Machine Destruction 2 | . . . . . . . . . . . . . . . . . . . . . . . . . . . 2 . . . Robots Rewired . | . . . . . . . . . . . . . . . . . . . . . . . . . . . . . . . Allies Hacked . | . . . . . . . . . . . . . . . . . . . . . . . . . . . . . . . Hacks Repelled . | . . . . . . . . . . . . . . . . . . . . . . . . . . . . . . . Allies | -11 -10 -10 -9 -9 -9 -8 -8 -7 -7 -7 -7 -6 -6 -5 -5 -5 -5 -5 -5 -4 -4 -4 -4 -4 -3 -3 -2 -2 -1 -1 -------- Run | Scr Mat Min Mat Min Exi Min Mat Fac Low Low Dat Pro Fac Fac Was Fac Upp Upp Zhi Pro Fac Upp Upp War Pro Res Res Tes Acc Com Total Allies 9 | . . . . . . . 1 . . . . 1 2 . . 2 . . . . . . . . . . . . 3 . Largest Group 3 | . . . . . . . 1 . . . . 1 2 . . 2 . . . . . . . . . . . . 3 . Highest-Rated Group 373 | . . . . . . . 10 . . . . 95 36 . . 52 . . . . . . . . . . . . 373 . Highest-Rated Ally 131 | . . . . . . . 10 . . . . 95 26 . . 26 . . . . . . . . . . . . 131 . Total Orders . | . . . . . . . . . . . . . . . . . . . . . . . . . . . . . . . Ally Attacks 15 | . . . . . . . . . . . . 12 . . . . . . . . . . . . . . . . 3 . Total Damage 593 | . . . . . . . . . . . . 382 . . . . . . . . . . . . . . . . 211 . Kills 5 | . . . . . . . . . . . . 5 . . . . . . . . . . . . . . . . . . Allies Corrupted . | . . . . . . . . . . . . . . . . . . . . . . . . . . . . . . . Allies Melted . | . . . . . . . . . . . . . . . . . . . . . . . . . . . . . . . Intel | -11 -10 -10 -9 -9 -9 -8 -8 -7 -7 -7 -7 -6 -6 -5 -5 -5 -5 -5 -5 -4 -4 -4 -4 -4 -3 -3 -2 -2 -1 -1 ------- Run | Scr Mat Min Mat Min Exi Min Mat Fac Low Low Dat Pro Fac Fac Was Fac Upp Upp Zhi Pro Fac Upp Upp War Pro Res Res Tes Acc Com Robot Analysis Total 15 | . 5 . 2 . . . . 1 . . . . 1 . . . . . 4 . . . . . . . . 2 . . Derelict Logs Recovered 14 | . . 1 . 1 . . . . 1 2 . 3 . . . . 1 1 . 2 . 2 . . . . . . . . Drone Launches . | . . . . . . . . . . . . . . . . . . . . . . . . . . . . . . . Drone Recoveries . | . . . . . . . . . . . . . . . . . . . . . . . . . . . . . . . Exploration | -11 -10 -10 -9 -9 -9 -8 -8 -7 -7 -7 -7 -6 -6 -5 -5 -5 -5 -5 -5 -4 -4 -4 -4 -4 -3 -3 -2 -2 -1 -1 ------------- Run | Scr Mat Min Mat Min Exi Min Mat Fac Low Low Dat Pro Fac Fac Was Fac Upp Upp Zhi Pro Fac Upp Upp War Pro Res Res Tes Acc Com Turns Passed 12377 | 42 1275 192 2067 415 219 154 1338 386 100 86 18 336 305 539 30 762 301 146 97 322 382 173 142 206 85 112 455 373 188 1131 Spaces Moved 19371 | 21 702 91 943 238 222 144 1011 1031 378 366 76 786 964 1623 106 1868 792 293 193 687 464 479 472 756 282 444 1226 581 425 1707 Core 11 | . . . . . . . . . . . . . . . . . . . . . . . . . . . . . . 11 Treads 1630 | . 475 91 943 121 . . . . . . . . . . . . . . . . . . . . . . . . . . Legs 1261 | . . . . . 106 144 1011 . . . . . . . . . . . . . . . . . . . . . . . Wheels 481 | 21 227 . . 117 116 . . . . . . . . . . . . . . . . . . . . . . . . . Hover 715 | . . . . . . . . . . . . . . . . . . . . . . . . . . . . . . 715 Flight 15273 | . . . . . . . . 1031 378 366 76 786 964 1623 106 1868 792 293 193 687 464 479 472 756 282 444 1226 581 425 981 Fastest Speed 6 | 90 100 160 160 100 90 45 90 23 11 11 23 11 14 6 12 6 6 21 21 6 6 21 6 6 6 6 22 12 15 20 Average Speed 41 | 98 140 160 160 142 95 88 93 25 21 22 23 22 20 21 17 20 19 21 21 20 19 21 18 20 20 19 23 21 21 37 Slowest Speed 360 | 100 160 160 160 360 180 90 180 94 23 23 23 23 23 26 22 23 21 21 100 21 21 21 21 21 21 21 27 99 22 110 Overloaded Moves 626 | . . . . . . 6 . . 40 14 . 34 13 7 51 50 56 . . 25 45 . 82 9 17 82 . 83 12 . Propulsion Burnouts 1 | . . . . . . . . . . . . . . . . . . . . . . . . . . 1 . . . . Robots Hopped 57 | . . . . . . . . 4 1 . . 1 1 9 . 14 . . . . 2 . 4 . . 4 5 6 2 4 Cave-ins Triggered . | . . . . . . . . . . . . . . . . . . . . . . . . . . . . . . . Teleports 1 | . . . . . . . . . . . . . . . . . . . . . . . . . . 1 . . . . Exploration Rate (%) 51 | 3 93 21 80 46 59 34 69 21 64 56 68 84 35 31 80 47 66 61 62 71 13 65 72 93 56 27 33 40 14 46 Regions Visited 30 Branch Regions 18 Pre-discovered Areas 7 | . . 1 . . 1 . . . . . 1 . . . . . . . 3 1 . . . . . . . . . . Known Exits Taken 22 | . . . 1 . . . 1 1 1 1 1 1 1 . . 1 1 1 1 1 1 1 1 1 1 1 1 1 1 . Unknown Exits Taken 6 | 1 1 1 . 1 1 1 . . . . . . . . . . . . . . . . . . . . . . . . Scrap Searched 24 | . . . . 4 . . . . 1 4 . 1 . . . . 4 3 . 4 . 1 1 . 1 . . . . . Spaces Dug 278 | . . . 11 20 . 36 12 2 . . . 1 4 36 . 12 25 10 . 4 3 8 2 . 44 . 5 13 9 21 Terrain Destroyed 676 | . . . 75 33 . 55 14 8 . . . 1 4 36 . 19 66 10 . 4 3 10 2 . 93 . 5 65 9 164 Melee 59 | . . . . . . . 5 2 . . . 1 4 12 . . . . . . . . . . . . 5 13 9 8 Projectile 119 | . . . . 1 . 3 9 . . . . . . 24 . 19 34 10 . 4 3 10 2 . . . . . . . AOE 498 | . . . 75 32 . 52 . 6 . . . . . . . . 32 . . . . . . . 93 . . 52 . 156 Terrain Rammed . | . . . . . . . . . . . . . . . . . . . . . . . . . . . . . . . Walls Destroyed . | . . . . . . . . . . . . . . . . . . . . . . . . . . . . . . . Machines Disabled . | . . . . . . . . . . . . . . . . . . . . . . . . . . . . . . . Actions | -11 -10 -10 -9 -9 -9 -8 -8 -7 -7 -7 -7 -6 -6 -5 -5 -5 -5 -5 -5 -4 -4 -4 -4 -4 -3 -3 -2 -2 -1 -1 --------- Run | Scr Mat Min Mat Min Exi Min Mat Fac Low Low Dat Pro Fac Fac Was Fac Upp Upp Zhi Pro Fac Upp Upp War Pro Res Res Tes Acc Com Total 22718 | 34 863 119 1287 276 228 159 1265 1144 394 368 75 939 1038 1740 118 2182 896 366 238 861 746 540 520 802 305 462 1349 775 493 2136 Wait 1838 | . 47 . 98 . . . 82 30 5 2 . 147 42 15 . 214 48 64 5 165 270 51 51 12 12 5 12 106 42 313 Move 19234 | 20 701 90 942 237 221 143 1010 1023 375 365 75 783 961 1605 105 1839 791 292 192 686 459 478 465 755 281 435 1216 570 420 1699 Hop 51 | . . . . . . . . 3 1 . . 1 1 9 . 14 . . . . 2 . 2 . . 4 4 4 2 4 Pick Up 190 | 4 19 1 41 2 1 1 24 9 2 . . 1 3 10 3 15 3 . 5 . 2 . . 5 2 2 19 5 3 8 Fast Attach 153 | 1 3 . 6 7 2 1 12 5 1 . . 2 4 4 3 7 2 . 9 1 6 . . 11 1 3 24 8 4 26 Attach 71 | 2 2 . 9 2 . . 2 10 1 . . . 2 5 1 3 2 . 2 . 2 . . . 1 3 5 4 1 12 Detach 22 | . . . 1 . . . . 4 2 . . . . 1 . 2 2 . . . . . . . 1 3 3 . . 3 Swap 132 | 1 6 . 22 4 1 4 24 5 4 1 . . 3 6 . 13 5 . 2 3 1 1 . 6 1 4 6 3 1 5 Drop 277 | 2 16 1 40 5 3 2 28 23 3 . . 3 5 12 6 20 5 . 13 1 1 . . 13 2 3 34 12 4 20 Fire 489 | 4 68 3 124 19 . 8 72 8 . . . . . 36 . 45 38 10 10 5 3 10 2 . 4 . . 5 . 15 Melee 140 | . . . . . . . 10 6 . . . 2 17 12 . . . . . . . . . . . . 24 28 16 25 Ram 2 | . . . . . . . . . . . . . . . . . . . . . . . . . . . 2 . . . Kick 1 | . . . . . . . 1 . . . . . . . . . . . . . . . . . . . . . . . Crush 27 | . 1 22 4 . . . . . . . . . . . . . . . . . . . . . . . . . . . Escape Stasis 88 | . . . . . . . . 18 . . . . . 25 . 10 . . . . . . . . . . . 30 . 5 Rewire 3 | . . 2 . . . . . . . . . . . . . . . . . . . . . . . . . . . 1 Trap . | . . . . . . . . . . . . . . . . . . . . . . . . . . . . . . . Miscellaneous . | . . . . . . . . . . . . . . . . . . . . . . . . . . . . . . . Route ------- -11/Scrapyard -10/Materials (discovered 4 exits: *Mat x3 / [*Min]) -10/Mines -9/Materials (discovered 4 exits: *Mat x2 / *Min / *Sto) -9/Mines -9/Exiles -8/Mines -8/Materials (discovered 3 exits: *Fac x3) -7/Factory (discovered 3 exits: *Fac / *Low x2) -7/Lower Caves -7/Lower Caves -7/Data Miner -6/Proximity Caves -6/Factory (discovered 6 exits: *Fac x4 / *Low x2) -5/Factory (discovered 2 exits: *Upp x2) -5/Waste -5/Factory (discovered 8 exits: *Fac x4 / *Upp x2 / Ext x2) -5/Upper Caves -5/Upper Caves -5/Zhirov -4/Proximity Caves -4/Factory (discovered 3 exits: *Res / *Upp x2) -4/Upper Caves -4/Upper Caves -4/Warlord -3/Proximity Caves -3/Research (discovered 6 exits: *Res x3 / Arm / Qua x2) -2/Research (discovered 2 exits: *Acc / *Tes) -2/Testing -1/Access (discovered 2 exits: Sur / *Com) -1/Command History --------- Turn | Location | Event 11 | -11/Scrapyard | Discovered new exit (range 2) 43 | -11/Scrapyard | Entered Materials 137 | -10/Materials | Discovered new exit (range 16) 281 | -10/Materials | Discovered new exit (range 11) 312 | -10/Materials | Build established: Mutant 381 | -10/Materials | Discovered new exit (range 9) 862 | -10/Materials | Discovered new exit (range 10) 1318 | -10/Materials | Entered Mines 1470 | -10/Mines | Discovered new exit (range 6) 1489 | -10/Mines | Learned location of Zion (-6) 1510 | -10/Mines | Entered Materials 1510 | -9/Materials | Evolved 2 slots: Propulsion x2 1630 | -9/Materials | Repaired Assault Rifle 1701 | -9/Materials | Repaired Lgt. Treads 2000 | -9/Materials | Discovered new exit (range 3) 2128 | -9/Materials | Lost 5 parts (2n1u2w) 2290 | -9/Materials | Build established: Scavenger-Mutant 2523 | -9/Materials | Identified exit to Mines 2523 | -9/Materials | Identified exit to Storage 2773 | -9/Materials | Core integrity fell below 50% 2784 | -9/Materials | Discovered new exit (range 4) 3577 | -9/Materials | Entered Mines 3603 | -9/Mines | A weapon hastily lodged in a ceiling crevice suddenly fell to the ground 3693 | -9/Mines | Learned 8 Materials zone layouts 3745 | -9/Mines | Assembled infested the area 3780 | -9/Mines | Core integrity fell below 20% 3781 | -9/Mines | Destroyed 8 combat bots 3823 | -9/Mines | Lost 4 parts (3n1u) 3986 | -9/Mines | Deemed a non-threat by the Exiles lab entrance 3987 | -9/Mines | Discovered new exit (range 5) 3992 | -9/Mines | Entered Exiles 4016 | -9/Exiles | Met 8R-AWN 4034 | -9/Exiles | Met EX-HEX 4060 | -9/Exiles | Met EX-BIN 4072 | -9/Exiles | Aligned with FarCom system 4073 | -9/Exiles | Given EX-Vault access code 4096 | -9/Exiles | Opened EX-Vault 4108 | -9/Exiles | Found Gui. Plasma Cannon 4112 | -9/Exiles | Found Potential Leg 4116 | -9/Exiles | Found Potential Leg 4144 | -9/Exiles | Warned to stay clear of 0b10 Research branches 4171 | -9/Exiles | Met EX-DEC 4202 | -9/Exiles | Discovered new exit (range 12) 4211 | -9/Exiles | Stole two prototypes: Potential Leg, Gui. Plasma Cannon 4211 | -9/Exiles | Entered Mines 4343 | -8/Mines | Discovered new exit (range 12) 4365 | -8/Mines | Entered Materials 4365 | -8/Materials | Evolved 2 slots: Utility x2 4366 | -8/Materials | Identified exit to Factory 4405 | -8/Materials | Build established: Mutant 4819 | -8/Materials | Build established: Scavenger-Mutant 5312 | -8/Materials | Discovered exit to Factory (range 11) 5364 | -8/Materials | Build established: Mutant 5677 | -8/Materials | Build established: Hacker-Mutant 5703 | -8/Materials | Entered Factory 5703 | -7/Factory | Evolved 2 slots: Propulsion x1, Utility x1 5705 | -7/Factory | FarCom data flow suspended 5951 | -7/Factory | Discovered new exit (range 16) 5973 | -7/Factory | Fabricated Surge Thruster (x2) 6001 | -7/Factory | Build established: Hacker-Sprinter 6003 | -7/Factory | Fabricated Surge Thruster (x2) 6009 | -7/Factory | Fabricated Surge Thruster? 6057 | -7/Factory | Identified exit to Lower Caves 6089 | -7/Factory | Entered Lower Caves 6089 | -7/Lower Caves | Spotted 2D-S0S(f) 6090 | -7/Lower Caves | Encountered a Master Thief 6096 | -7/Lower Caves | Encountered a Warlord checkpoint 6121 | -7/Lower Caves | Learned location of 1 exit from Factory 6150 | -7/Lower Caves | Spotted B-75 Beast 6180 | -7/Lower Caves | Discovered new exit (range 14) 6189 | -7/Lower Caves | Identified exit to Lower Caves 6189 | -7/Lower Caves | Entered another Lower Caves area 6190 | -7/Lower Caves | Encountered a Warlord checkpoint 6240 | -7/Lower Caves | Spotted B-75 Beast 6257 | -7/Lower Caves | Spotted CX-GKZ(f) 6260 | -7/Lower Caves | Encountered a Master Thief 6266 | -7/Lower Caves | Spotted D0-QQT(f) 6266 | -7/Lower Caves | Spotted 9C-ZBG(f) 6266 | -7/Lower Caves | Spotted 29-CRD(f) 6267 | -7/Lower Caves | Encountered a Master Thief 6267 | -7/Lower Caves | Encountered a Master Thief 6267 | -7/Lower Caves | Encountered a Master Thief 6274 | -7/Lower Caves | Learned 8 Factory zone layouts 6274 | -7/Lower Caves | Discovered new exit (range 6) 6275 | -7/Lower Caves | Identified exit to Data Miner 6275 | -7/Lower Caves | Entered Data Miner 6275 | -7/Data Miner | Discovered new exit (range 6) 6280 | -7/Data Miner | Met Data Miner 6284 | -7/Data Miner | Learned location of Section 7 (-2) 6284 | -7/Data Miner | Acquired the access code to Warlord's prototype stash 6287 | -7/Data Miner | Received God Mode back door access code from Data Miner 6293 | -7/Data Miner | Identified exit to Proximity Caves 6293 | -7/Data Miner | Entered Proximity Caves 6312 | -6/Proximity Caves | Escorted by Enhanced Grunt 6355 | -6/Proximity Caves | Learned location of 1 exit from Factory 6455 | -6/Proximity Caves | Learned 12 Factory zone layouts 6459 | -6/Proximity Caves | Learned Factory stockpile data 6529 | -6/Proximity Caves | Discovered new exit (range 9) 6629 | -6/Proximity Caves | Identified exit to Factory 6629 | -6/Proximity Caves | Entered Factory 6629 | -6/Factory | Evolved 2 slots: Propulsion x1, Utility x1 6630 | -6/Factory | Identified exit to Factory 6650 | -6/Factory | Identified exit to Lower Caves 6685 | -6/Factory | Repaired Greatsword 6740 | -6/Factory | Spotted B-75 Beast 6796 | -6/Factory | Central database locked down 6934 | -6/Factory | Entered another Factory area 6934 | -5/Factory | Evolved 2 slots: Power x1, Utility x1 6935 | -5/Factory | Identified exit to Upper Caves 7064 | -5/Factory | Discovered exit to Upper Caves (range 4) 7473 | -5/Factory | Manually triggered Chute Trap 7473 | -5/Factory | Sucked down chute 7473 | -5/Factory | Entered Waste 7476 | -5/Waste | Found Prototype Device 7476 | -5/Waste | Identified EM Dispersion Field 7487 | -5/Waste | Spotted C-40 Crusher 7488 | -5/Waste | Spotted C-40 Crusher 7497 | -5/Waste | Spotted C-40 Crusher 7497 | -5/Waste | Spotted C-40 Crusher 7498 | -5/Waste | Spotted C-40 Crusher 7498 | -5/Waste | Spotted C-40 Crusher 7500 | -5/Waste | Discovered new exit (range 14) 7503 | -5/Waste | Identified exit to Factory 7503 | -5/Waste | Entered Factory 7564 | -5/Factory | Repaired Cld. Cesium-ion Thruster 7574 | -5/Factory | Identified exit to Factory 7949 | -5/Factory | Identified exit to Extension 8043 | -5/Factory | Repaired Cld. Cesium-ion Thruster 8265 | -5/Factory | Entered Upper Caves 8392 | -5/Upper Caves | Learned Extension security intel 8403 | -5/Upper Caves | Learned location of 1 exit from Factory 8503 | -5/Upper Caves | Encountered a Warlord checkpoint 8545 | -5/Upper Caves | Discovered new exit (range 6) 8546 | -5/Upper Caves | Identified exit to Upper Caves 8566 | -5/Upper Caves | Entered another Upper Caves area 8575 | -5/Upper Caves | Learned Factory emergency access door positions 8683 | -5/Upper Caves | Discovered new exit (range 19) 8704 | -5/Upper Caves | Identified exit to Zhirov 8712 | -5/Upper Caves | Spotted B-75 Beast 8712 | -5/Upper Caves | Entered Zhirov 8712 | -5/Zhirov | Discovered new exit (range 3) 8718 | -5/Zhirov | Met Zhirov 8725 | -5/Zhirov | Found Alien Artifact 8725 | -5/Zhirov | Identified Integrated Dissipator 8725 | -5/Zhirov | Installed Integrated Dissipator, increased core heat dissipation (+20) 8731 | -5/Zhirov | Found Alien Artifact 8798 | -5/Zhirov | Learned location of Quarantine (-3) 8798 | -5/Zhirov | Learned location of Testing (-2) 8798 | -5/Zhirov | Learned location of Command (-1) 8801 | -5/Zhirov | Zhirov requested help retrieving the SGEMP Prototype 8807 | -5/Zhirov | Identified exit to Proximity Caves 8809 | -5/Zhirov | Entered Proximity Caves 8847 | -4/Proximity Caves | Build established: Hacker-Scout 9041 | -4/Proximity Caves | Learned Research stockpile data 9128 | -4/Proximity Caves | Discovered exit to Factory (range 11) 9131 | -4/Proximity Caves | Entered Factory 9131 | -4/Factory | Evolved 2 slots: Utility x2 9132 | -4/Factory | Identified exit to Research 9224 | -4/Factory | Repaired Cld. Cesium-ion Thruster 9305 | -4/Factory | Repaired Cld. Cesium-ion Thruster 9363 | -4/Factory | Repaired Mic. Fission Core 9414 | -4/Factory | Repaired Adv. Terrain Scanner 9478 | -4/Factory | Identified Transdimensional Reconstructor 9497 | -4/Factory | Discovered new exit (range 20) 9500 | -4/Factory | Identified exit to Upper Caves 9513 | -4/Factory | Entered Upper Caves 9540 | -4/Upper Caves | Learned Research security intel 9542 | -4/Upper Caves | Learned location of 1 exit from Research 9621 | -4/Upper Caves | Discovered new exit (range 13) 9686 | -4/Upper Caves | Identified exit to Upper Caves 9686 | -4/Upper Caves | Entered another Upper Caves area 9688 | -4/Upper Caves | Encountered a Warlord checkpoint 9784 | -4/Upper Caves | Spotted B-86 Titan 9825 | -4/Upper Caves | Discovered new exit (range 14) 9827 | -4/Upper Caves | Identified exit to Warlord 9828 | -4/Upper Caves | Entered Warlord 9833 | -4/Warlord | Discovered new exit (range 18) 9942 | -4/Warlord | Visited the Vortex Lab 9943 | -4/Warlord | Warlord's base attacked by MAIN.C 9943 | -4/Warlord | Found Prototype Energy Gun 9943 | -4/Warlord | Identified Vortex Rail 9946 | -4/Warlord | Found Prototype Launcher 9946 | -4/Warlord | Identified Vortex Catalyst Activator 9973 | -4/Warlord | Met Warlord 9976 | -4/Warlord | Opened Warlord's prototype stash 9987 | -4/Warlord | Found Prototype Device 9987 | -4/Warlord | Identified Thermal Barrier 9992 | -4/Warlord | Found Prototype Device 9992 | -4/Warlord | Identified Exp. Phase Shifter 10012 | -4/Warlord | Opened side exit 10034 | -4/Warlord | Identified exit to Proximity Caves 10034 | -4/Warlord | Entered Proximity Caves 10118 | -3/Proximity Caves | Discovered exit to Research (range 10) 10119 | -3/Proximity Caves | Entered Research 10119 | -3/Research | Evolved 2 slots: Utility x2 10120 | -3/Research | Identified exit to Research 10213 | -3/Research | Spotted B-86 Titan 10218 | -3/Research | Identified exit to Armory 10218 | -3/Research | Identified exit to Quarantine 10224 | -3/Research | Warped through subspace 10224 | -3/Research | Spotted B-86 Titan 10231 | -3/Research | Entered another Research area 10231 | -2/Research | Warlord forces began assault on 0b10 10231 | -2/Research | Evolved 2 slots: Utility x2 10246 | -2/Research | Lost 3 parts (3n) 10341 | -2/Research | Research machine network offline 10358 | -2/Research | Met up with Warlord 10383 | -2/Research | Found Prototype Device 10383 | -2/Research | Identified Exp. Actuator Array 10414 | -2/Research | Spotted B-90 Cyclops 10463 | -2/Research | Found Prototype Device 10463 | -2/Research | Identified Exp. Thermal Shield 10566 | -2/Research | Found Prototype Launcher 10566 | -2/Research | Identified Adv. Micro-nuke Launcher 10579 | -2/Research | Discovered new exit (range 15) 10595 | -2/Research | Identified exit to Access 10644 | -2/Research | Found Prototype Device 10644 | -2/Research | Identified Exp. Shield Generator 10650 | -2/Research | Found Quantum Capacitor 10655 | -2/Research | Spotted Striker 10672 | -2/Research | Build established: Wizard-Sprinter 10679 | -2/Research | Discovered new exit (range 15) 10686 | -2/Research | Identified exit to Testing 10686 | -2/Research | Entered Testing 10768 | -2/Testing | Lost 4 parts (1p3u) 10850 | -2/Testing | Fabricated Mic. Fission Core (x2) 10887 | -2/Testing | Spotted Alpha 7 10893 | -2/Testing | Scanned by Researcher 10913 | -2/Testing | Stole the SGEMP Prototype 10961 | -2/Testing | Found Prototype Energy Gun 10961 | -2/Testing | Identified Tachyon Dispersion Ray 11036 | -2/Testing | Found Prototype Device 11036 | -2/Testing | Identified AEGIS Remote Shield 11059 | -2/Testing | Entered Access 11059 | -1/Access | Evolved 2 slots: Propulsion x2 11060 | -1/Access | Loaded intel: 104 machine locations 11060 | -1/Access | Loaded intel: 67 trap records 11060 | -1/Access | Identified exit to Surface 11060 | -1/Access | Discovered exit to Surface (range 222) 11060 | -1/Access | Identified exit to Command 11060 | -1/Access | Discovered exit to Command (range 153) 11060 | -1/Access | Delivered the SGEMP Prototype to Zhirov 11060 | -1/Access | Zhirov transferred Access data 11108 | -1/Access | Found Prototype Launcher 11108 | -1/Access | Identified Enh. Gamma Bomb Array 11247 | -1/Access | Entered Command 11353 | -1/Command | Disengaged cave seal 11355 | -1/Command | Welcomed Warlord to Command 11477 | -1/Command | Spotted M Guard 11477 | -1/Command | Spotted M Guard 11477 | -1/Command | Spotted Combat Programmer 11494 | -1/Command | Spotted Combat Programmer 11495 | -1/Command | Incoming investigation squad redirected 11564 | -1/Command | All MAIN.C guards destroyed 11590 | -1/Command | Found Prototype Launcher 11595 | -1/Command | Lost 12 parts (1p3n7u1w) 11595 | -1/Command | Found AEGIS Remote Shield 11618 | -1/Command | Identified Ragnarok Missile Launcher 11849 | -1/Command | Build established: Hacker-Mutant 11879 | -1/Command | System corruption reached 10% 12329 | -1/Command | Spotted Executioner 12329 | -1/Command | Spotted Striker 12361 | -1/Command | Spotted Executioner 12362 | -1/Command | Spotted Executioner 12362 | -1/Command | Spotted Alpha 7 12364 | -1/Command | Spotted Alpha 7 12364 | -1/Command | Spotted Executioner 12364 | -1/Command | Spotted Striker 12367 | -1/Command | Spotted B-99 Colossus 12370 | -1/Command | Spotted B-99 Colossus 12373 | -1/Command | Core integrity fell below 50% 12376 | -1/Command | Core integrity fell below 20% 12378 | -1/Command | Destroyed by Alpha 7 with Multirail Last Messages --------------- 12376_ A bubble of rippling energy engulfs the area. 12376_ Field strength at 94. 12376_ Executioner suffers critical hit (Destroy). 12376_ Slug penetrates Wall. 12376_ Slug penetrates Executioner. 12376_ Slug penetrates Wall. 12376_ Field strength at 84. 12377_ Field strength at 65. 12378_ Adv. Hacking Suite destroyed. 12378_ Knocked back. 12378_ Slug penetrates Wall. 12378_ Penetrated by Slug. 12378_ Slug penetrates Executioner. 12378_ Penetrated by Slug. 12378_ Slug penetrates Executioner. 12378_ Penetrated by Slug. 12378_ Slug penetrates Wall. 12378_ Penetrated by Slug. 12378_ Slug penetrates Executioner. 12378_ Executioner suffers critical hit (Destroy). Map ----- +----------------------------------------------------+ | !!! # #????????????????# | | #%%%###+## #????????????????####"# | | *# ## ## #?????????????????# # | | ## =# ## ## """ """ #?????????????????# | | ### #### ## """T""" #?????????????????# # | | ##################?????????????????## ## | | #???????????????????????????????????# #? | | ##/########????????????????????????????######## #? | | # #?????????????????????????????# ] # #? | | # #?????????????????? #?????#### # #? | | # "" #???????#????????? #?????# + + #? | | # """" #???????# ??????? #?????# ## # #? | | # """" #???????# ?????? #?????# ## ! # #? | | # "" #???????# ?????? #?????# ## ! # #? | | # #???????# ?????? #?????# #####+### #? | | # #???????# ?????" #?????# #???# #? !? | | # #?####### """"" #?????# #???# #? ? | | ########### ## ^ ^ #?#####+#####+#? ? | | ##?????## # ## BB ??# #?###? | | ##???# #?? BB ???# #????? | | # #??## # #??##BB ##???# #????? | | #### # # #### BB #???# #????? | | # # " ### ^ E##???# ###### | | # " * # ## ^ #???# " # | | ## " ###^^ % ;##??# "" " / | | ## " # ## E @E ;#??# """" # | | ### #??????#;%E%^ ;;#??# "" # | | ??# ##?????#; K ##??# # | | ??# #??????# 7 7##???# + | | ??# #??????## ! #????# """ """ ###### | | ??# ! #??????## ;????# """T""" #????? | | #######+########### %#????#############????? | | !! #?# "" #?????????????????????? | | %!!! ### """ #????????????????????? | | [%%! / " p ;##????????????????????? | | = ### [%!! p %##?????????????????????? | | *[ ###?#=%*== !% ; #??????????????????????? | | = #???#*=![!!*! ; "#?????????????????????? | | #???#[!%=%*%=[# "#?????????????????????? | | #???#*%!%%*[%=# %##?????????????????????? | | #???####""""### %"??????????????????????? | | ######+######?# #="??# % #??????????????????????? | | #?# ""#####"########?????????????????? | | #?#?#%[= #?????????????????? | | *#???#[ #?????????????????? | | ! = %#####% % #?????????????????? | | = / + " #?????????????????? | | ""T"""" ##### #?????????????????? | | """""""" #???# #?????????????????? | | #############???######"#########?????????????????? | +----------------------------------------------------+ Best States ------------- Heat Dissipation 72 Energy Generation 58 Energy Capacity 1005 Matter Stores 300 Matter Capacity 300 Sight Range 16 Robot Scan Range 16 Terrain Scan Range 20 Terrain Scan Density 210 Power Amplification 80 Additional Mass Support 16 Armor Coverage 150 Resistance: EM 75 Utility Shielding 90 Melee Speed Boost 40 Phase Shifting 20 Evasion (%) 97 Recoil Reduction 4 Matter Filtering 50 Offensive Hacking 70 Defensive Hacking 11 Item Schematics ----------------- Cmb. Airjet | -8/Materials | Scanalyzed Machine Analyzer | -8/Materials | Scanalyzed Hacking Suite | -8/Materials | Scanalyzed System Shield | -8/Materials | Scanalyzed Imp. Propulsion Shielding | -8/Materials | Hacked Surge Thruster | -8/Materials | Hacked Combat Drone Bay | -7/Data Miner | Free Lgt. Regenerative Plating | -7/Data Miner | Free Cmb. Gravmag System | -7/Data Miner | Free Tactical Coordination Suite | -7/Data Miner | Free Exp. Transmission Jammer | -7/Data Miner | Free Exp. ECM Suite | -7/Data Miner | Free Cloaking Device | -7/Data Miner | Free Plasma Sword | -7/Data Miner | Free Kinetic Spear | -7/Data Miner | Free Nanoactuators | -6/Factory | Hacked Cld. VTOL Module | -6/Factory | Hacked Mic. Fission Core | -6/Factory | Hacked Imp. Surge Thruster | -6/Factory | Hacked Cold Fusion Reactor | -6/Factory | Hacked Cld. Nuclear Pulse Thruster | -5/Factory | Scanalyzed Exp. Melee Analysis Suite | -5/Factory | Hacked Biomechanical Wings | -5/Factory | Scanalyzed Assault Drone Bay | -5/Zhirov | Free Exp. Heat Sink | -5/Zhirov | Free Exp. Optical Array | -5/Zhirov | Free Imp. Arc Thrower | -5/Zhirov | Free Robot Schematics ------------------ S-27 Virus | -7/Data Miner | Free G-50 Soldier | -7/Data Miner | Free X-72 Disruptor | -7/Data Miner | Free H-66 Slayer | -7/Data Miner | Free P-70 Sage | -7/Data Miner | Free I-36 Angel | -7/Data Miner | Free Fabricated ------------ Surge Thruster | x2 | -7/Factory Surge Thruster | x2 | -7/Factory Surge Thruster | x2 | -7/Factory Mic. Fission Core | x2 | -2/Testing Alien Tech Used ----------------- Integrated Dissipator Transdimensional Reconstructor Achievements -------------- None Challenges ------------ None Game ------ Seed EnergyBiomechanicalSource Manual? 0 Play Time 04:37:45 Cumulative 333.2 hours Start 2021.09.06 @ 19:07:58 End 2021.09.07 @ 00:17:40 Sessions 2 Manual Loads 0 Difficulty Rogue Special Mode None Game No. 180 Rogue 180 Adventurer 0 Explorer 0 Win Type - Total 10 Types 6/0/2/2/0/0/0/0/0 Lore% 83 Gallery% 85 Achievement% 67 Wizard Run 0 Options --------- ASCII 0 Keyboard 0 Movement Numpad Keybinds 0 Fullscreen 1 Font 18/SmallcapsGlow Map View 76x50 Tactical HUD 1 Map Filters NONE Filters NONE Steam 1 RUN: 0a8d79b8-7f14-479e-92ef-572d3a5eb9f1